bitfinex/quotes_ETHUSD_20240902
["timestamp","ask_amount","ask_price","bid_price","bid_amount"]
[1725235809743,7.5898,2436.0,2435.5,2.05296]
[1725235810763,7.5898,2436.0,2435.4,2.05304]
[1725235810941,7.5898,2436.0,2435.4,2.05298]
[1725235811313,7.5898,2436.0,2435.5,2.05291]
[1725235811632,19.93209454,2436.2,2435.7,7.4494]
[1725235811959,19.93209454,2436.2,2436.1,4.10492]
[1725235812276,7.28,2436.6,2435.8,3.43362923]
[1725235812277,7.7909,2436.9,2436.5,2.05211]
[1725235812419,7.7909,2436.9,2436.6,2.05202]
[1725235812616,19.93209454,2437.4,2436.6,2.05202]
[1725235812617,7.7909,2437.2,2436.7,2.05189]
[1725235812857,8.56999,2437.2,2436.7,2.05189]
[1725235813272,11.20699977,2437.2,2436.5,2.05207]
[1725235813445,7.7909,2436.9,2436.4,2.0522]
[1725235813629,7.7909,2436.9,2436.5,2.05212]
[1725235814182,7.1891,2437.3,2436.7,2.05189]
[1725235814528,7.64866313,2437.3,2436.7,2.05189]
[1725235814732,13.05166498,2437.3,2436.5,2.05212]
[1725235814969,7.8269,2437.2,2436.5,2.05212]
[1725235815966,7.8269,2437.2,2436.3,2.05225]
[1725235815967,7.8269,2437.2,2436.3,2.05222]
[1725235816269,7.8269,2437.0,2436.4,2.0522]
[1725235818277,7.8269,2437.0,2436.5,2.0521]
[1725235818446,19.93209454,2436.9,2436.5,2.0521]
[1725235819361,19.93209454,2436.9,2436.8,2.05187]
[1725235819872,19.93209454,2436.9,2436.7,2.05187]
[1725235820114,19.93209454,2436.9,2436.5,4.10414]
[1725235820384,29.27020399,2436.9,2436.5,2.05205]
[1725235820529,29.27020399,2436.9,2436.5,4.1041]
[1725235820730,29.27020399,2436.9,2436.5,2.05205]
[1725235822072,27.27699454,2436.9,2436.6,2.05203]
[1725235822286,27.27699454,2436.9,2436.7,2.05189]
[1725235822448,19.93209454,2436.9,2436.8,2.05187]
[1725235824372,14.8771,2437.2,2436.8,2.05187]
[1725235824373,19.93209454,2437.1,2436.8,2.05187]
[1725235824945,19.93209454,2437.1,2436.7,2.05192]
[1725235824946,19.93209454,2437.1,2436.9,2.05178]
[1725235826733,19.93209454,2437.1,2436.5,2.05208]
[1725235826965,7.769,2436.9,2436.5,2.05208]
[1725235827241,7.769,2436.9,2436.6,2.05202]
[1725235827865,7.769,2436.9,2436.5,2.05208]
[1725235828489,7.769,2436.9,2436.5,4.10413]
[1725235828986,7.769,2436.9,2436.5,2.05205]
[1725235829187,21.07242315,2436.8,2436.2,2.05236]
[1725235829983,21.07242315,2436.8,2436.1,2.05242]
[1725235829984,7.7455,2436.7,2436.1,2.05242]
[1725235830208,3.08698032,2436.6,2436.1,2.05242]
[1725235830498,3.08698032,2436.6,2436.2,2.05237]
[1725235831149,3.08698032,2436.6,2436.1,2.05242]
[1725235831552,3.08698032,2436.6,2436.2,2.05237]
[1725235832302,3.08698032,2436.6,2436.1,2.05242]
[1725235832303,3.08698032,2436.6,2436.3,2.05229]
[1725235832486,7.7455,2436.7,2436.3,2.05229]
[1725235832656,7.7455,2436.7,2436.5,2.05212]
[1725235833208,13.86523631,2437.2,2436.8,2.05187]
[1725235833209,19.93209454,2436.9,2436.8,2.05187]
[1725235833656,19.93209454,2436.9,2436.8,4.10374]
[1725235833858,19.93209454,2436.9,2436.8,2.05187]
[1725235834087,19.93209454,2436.9,2436.6,2.05201]
[1725235834088,22.70540399,2436.9,2436.6,2.05201]
[1725235834602,19.93209454,2436.9,2436.6,2.05201]
[1725235835199,19.93209454,2436.9,2436.8,2.05187]
[1725235835616,19.93209454,2436.9,2436.8,4.10374]
[1725235835851,19.93209454,2437.3,2437.2,2.05153]
[1725235836124,3.35153185,2437.9,2436.4,5.48577072]
[1725235836125,7.8915,2438.2,2437.8,2.05095]
[1725235836722,7.8915,2438.2,2437.9,2.05091]
[1725235836870,8.68065,2438.2,2437.8,2.05095]
[1725235837074,8.68065,2438.2,2437.5,2.05127]
[1725235837326,1.44540143,2438.1,2437.5,2.05127]
[1725235837782,11.0416703,2438.0,2437.4,2.05136]
[1725235837969,7.1993,2438.0,2437.4,2.05136]
[1725235838164,7.1993,2438.0,2437.5,2.05127]
[1725235838417,7.1993,2438.0,2437.3,2.05141]
[1725235838418,8.31211683,2438.0,2437.3,2.05141]
[1725235838989,10.36299683,2438.0,2437.2,2.05152]
[1725235839198,8.82511333,2437.9,2437.2,2.05152]
[1725235840283,7.526,2437.9,2437.3,2.13348661]
[1725235840603,7.526,2437.9,2437.6,2.05118]
[1725235842305,19.93209454,2437.8,2437.6,2.05118]
[1725235842500,19.93209454,2437.8,2437.4,2.05132]
[1725235842707,19.93209454,2437.8,2437.3,2.05143]
[1725235842708,22.50510195,2437.8,2437.3,2.05143]
[1725235843287,22.50510195,2437.8,2437.2,2.0515]
[1725235843628,22.50510195,2437.8,2437.2,2.05152]
[1725235843919,3.2082042,2437.7,2437.3,2.05144]
[1725235845724,3.2082042,2437.7,2437.1,2.05161]
[1725235845925,2.31402987,2437.6,2437.1,2.05161]
[1725235846076,2.31402987,2437.6,2437.2,2.05151]
[1725235847051,2.31402987,2437.6,2436.7,5.05189]
[1725235847052,27.33699454,2437.5,2436.7,2.05191]
[1725235847339,7.4049,2437.3,2436.6,2.05201]
[1725235847545,9.45635,2437.3,2436.6,2.05201]
[1725235847703,2.93884445,2437.2,2436.7,2.05194]
[1725235848408,2.93884445,2437.2,2436.6,2.05201]
[1725235848607,7.444,2437.1,2436.6,2.05201]
[1725235849229,7.444,2437.1,2436.4,2.05218]
[1725235849230,27.37609454,2437.1,2436.4,2.05218]
[1725235849441,7.444,2436.9,2436.3,2.05228]
[1725235849601,19.93209454,2436.8,2436.2,2.05236]
[1725235850401,19.93209454,2436.8,2436.4,2.05219]
[1725235851707,19.93209454,2436.8,2436.6,2.05196]
[1725235851904,19.93209454,2436.8,2436.7,4.1039]
[1725235852322,27.21209454,2437.3,2437.2,2.05153]
[1725235852534,19.93209454,2437.5,2437.4,2.05136]
[1725235852907,19.93209454,2437.5,2437.4,4.10272]
[1725235853523,19.93209454,2437.5,2437.4,2.05136]
[1725235854264,19.93209454,2437.5,2437.2,2.05153]
[1725235854623,22.65330399,2437.5,2437.0,2.05165]
[1725235854864,7.5019,2437.4,2436.9,2.05174]
[1725235855076,3.0155204,2437.3,2436.9,2.05177]
[1725235857046,19.93209454,2437.2,2436.9,2.05177]
[1725235858042,19.93209454,2437.2,2437.0,2.05163]
[1725235858641,19.93209454,2437.2,2437.1,2.05161]
[1725235858853,19.93209454,2437.2,2437.1,4.10322]
[1725235861786,19.93209454,2437.2,2437.1,2.05161]
[1725235861944,21.92530399,2437.2,2436.8,2.05178]
[1725235862144,21.92530399,2437.2,2436.9,2.05178]
[1725235862438,21.92530399,2437.2,2436.8,2.05178]
[1725235862658,2.1925304,2437.1,2436.8,2.05178]
[1725235863075,22.12462494,2437.1,2436.8,2.05178]
[1725235863380,22.12462494,2437.1,2436.4,2.05219]
[1725235863381,7.7515,2437.0,2436.4,2.05219]
[1725235863583,22.91970703,2436.9,2436.3,2.05228]
[1725235863731,22.91970703,2436.9,2436.4,2.13427479]
[1725235863929,22.91970703,2436.9,2436.6,2.05203]
[1725235863930,19.93209454,2436.9,2436.6,2.05203]
[1725235864153,19.93209454,2436.9,2436.7,2.05195]
[1725235864559,19.93209454,2436.9,2436.6,2.05203]
[1725235864560,19.93209454,2436.9,2436.8,2.05187]
[1725235868113,19.93209454,2437.3,2437.0,2.05163]
[1725235868662,19.93209454,2437.3,2437.1,2.05154]
[1725235868906,19.93209454,2437.3,2437.2,2.05153]
[1725235869516,19.93209454,2437.3,2437.2,4.10306]
[1725235869670,19.93209454,2437.3,2437.2,2.05153]
[1725235870807,19.93209454,2437.3,2436.8,2.05178]
[1725235871010,19.93209454,2437.3,2437.0,2.05162]
[1725235871215,1.40036348,2437.2,2436.8,2.05178]
[1725235871940,21.33245802,2437.2,2436.8,2.05178]
[1725235877133,21.33245802,2437.2,2436.8,4.10358]
[1725235877701,21.33245802,2437.2,2436.8,2.05178]
[1725235878037,19.93209454,2437.1,2436.8,2.05178]
[1725235878632,19.93209454,2437.1,2436.8,4.10357]
[1725235878927,19.93209454,2437.1,2436.9,2.05178]
[1725235879125,19.93209454,2437.1,2436.3,9.01612772]
[1725235879126,22.80873034,2437.1,2436.6,2.05197]
[1725235879341,7.1318,2437.0,2436.6,2.05197]
[1725235879828,7.1318,2437.0,2436.2,2.05229]
[1725235879829,7.1318,2436.8,2436.2,2.05229]
[1725235880043,19.93209454,2436.7,2436.2,2.05229]
[1725235880533,19.93209454,2436.7,2436.3,2.05228]
[1725235880689,22.9378893,2436.7,2436.3,2.05228]
[1725235881205,22.9378893,2436.7,2436.6,2.05203]
[1725235881206,19.93209454,2436.7,2436.6,2.05203]
[1725235881806,19.93209454,2436.7,2436.6,4.10406]
[1725235882051,7.4188,2437.1,2436.6,4.10406]
[1725235882335,7.1765,2438.4,2438.1,2.05076]
[1725235882645,7.1765,2438.7,2438.3,2.0506]
[1725235882989,7.1765,2438.7,2437.9,0.08202545]
[1725235883190,7.1765,2438.7,2438.6,2.05035]
[1725235884116,7.1765,2438.7,2438.3,2.05059]
[1725235884954,7.1765,2438.7,2438.1,2.05075]
[1725235884955,0.51113217,2438.6,2438.1,2.05075]
[1725235885117,7.1765,2438.7,2438.2,2.05067]
[1725235885315,0.76876322,2438.6,2438.2,2.05067]
[1725235885622,0.76876322,2438.6,2438.3,2.05059]
[1725235886010,0.76876322,2438.6,2438.2,2.05067]
[1725235886190,0.79452632,2438.5,2438.2,2.05067]
[1725235889237,0.79452632,2438.5,2438.0,2.05084]
[1725235889445,0.79452632,2438.5,2437.9,2.13295366]
[1725235889798,20.72662086,2438.5,2437.9,2.05093]
[1725235890519,20.72662086,2438.5,2438.2,2.05068]
[1725235890718,2.07266209,2438.4,2437.9,2.05093]
[1725235890893,19.93209454,2438.5,2437.7,3.0]
[1725235891101,19.93209454,2438.5,2438.2,2.05068]
[1725235891950,19.93209454,2438.5,2438.3,2.0506]
[1725235892152,7.28,2438.8,2437.7,3.0]
[1725235892153,7.2513,2439.1,2439.0,2.05002]
[1725235892359,14.82859528,2439.7,2438.2,11.9663229]
[1725235892360,19.93209454,2439.6,2438.9,2.05007]
[1725235892656,7.8396,2440.7,2439.4,4.4752229]
[1725235892861,7.8396,2440.7,2439.9,2.04924]
[1725235892862,0.42936622,2440.2,2439.9,2.04924]
[1725235893157,0.78396,2440.6,2440.1,2.04909]
[1725235893449,0.78396,2440.6,2439.8,2.04934]
[1725235893450,0.42919191,2440.2,2439.8,2.04934]
[1725235893663,1.37348817,2440.5,2439.8,2.04934]
[1725235893946,1.37348817,2440.5,2439.6,2.04948]
[1725235893947,0.42922924,2440.2,2439.6,2.04948]
[1725235894263,7.4351,2440.1,2439.6,2.04948]
[1725235894549,7.4351,2440.1,2439.5,2.04958]
[1725235896937,9.48422,2440.1,2439.3,2.04975]
[1725235897152,0.74351,2440.0,2439.4,2.04967]
[1725235897740,2.79269,2440.0,2439.2,2.04982]
[1725235897937,2.79269,2440.0,2439.1,5.04991]
[1725235897938,0.817861,2439.9,2439.1,2.04991]
[1725235898142,0.2867041,2439.8,2439.1,2.04991]
[1725235898738,0.2867041,2439.8,2438.9,5.05008]
[1725235898739,7.8714,2439.6,2438.9,5.05008]
[1725235898939,7.8714,2439.6,2438.7,2.46225]
[1725235898940,19.93209454,2439.5,2438.7,2.05025]
[1725235899125,22.76883454,2439.5,2438.8,2.05016]
[1725235899545,2.04968,2439.4,2438.5,6.9376329]
[1725235899745,5.11370345,2439.4,2438.5,2.46241]
[1725235900146,5.11370345,2439.4,2438.7,2.05025]
[1725235900375,2.5832938,2439.3,2438.7,2.05025]
[1725235902543,2.5832938,2439.3,2438.8,2.05018]
[1725235903241,2.5832938,2439.3,2438.6,2.05031]
[1725235903815,2.5832938,2439.3,2438.7,2.05024]
[1725235903937,0.46329738,2439.2,2438.7,2.05024]
[1725235904288,7.9084,2439.1,2438.5,2.05041]
[1725235904585,7.9084,2439.1,2438.3,5.05058]
[1725235904586,19.93209454,2439.0,2438.3,5.05058]
[1725235904786,2.98904345,2438.9,2438.3,2.05058]
[1725235904995,2.98904345,2438.9,2438.4,2.05049]
[1725235905136,2.98904345,2438.9,2438.3,2.05058]
[1725235905137,2.98904345,2438.9,2438.5,2.05044]
[1725235905501,19.93209454,2439.0,2438.7,2.05025]
[1725235905672,19.93209454,2439.0,2438.9,2.0501]
[1725235905841,19.93209454,2439.0,2438.8,2.05018]
[1725235907249,21.40648853,2439.0,2438.4,5.0505]
[1725235907592,19.93209454,2438.9,2438.7,2.05021]
[1725235907946,19.93209454,2438.9,2438.8,4.10036]
[1725235909375,19.93209454,2438.9,2438.8,6.15054]
[1725235910361,19.93209454,2438.9,2438.8,4.10036]
[1725235913705,19.93209454,2439.4,2439.2,2.04984]
[1725235913909,19.93209454,2439.3,2439.2,2.04984]
[1725235915217,19.93209454,2439.3,2439.2,4.09969]
[1725235915417,19.93209454,2439.7,2438.8,0.08199444]
[1725235915842,19.93209454,2439.7,2439.6,2.04951]
[1725235915980,22.65659399,2439.7,2439.6,2.04951]
[1725235917031,19.93209454,2439.7,2439.6,4.09902]
[1725235917575,19.93209454,2439.7,2439.6,2.04951]
[1725235918353,19.93209454,2439.7,2439.4,2.04968]
[1725235918624,19.93209454,2439.7,2439.3,2.04976]
[1725235918778,2.72449945,2439.6,2439.3,2.04976]
[1725235918974,2.72449945,2439.6,2439.4,2.04967]
[1725235919180,7.4148,2439.5,2439.2,2.04983]
[1725235919415,9.6804594,2439.5,2439.2,2.04983]
[1725235919626,19.93209454,2439.4,2439.1,2.04993]
[1725235920219,19.93209454,2439.4,2439.2,2.04984]
[1725235920528,22.66678399,2439.4,2439.2,2.04984]
[1725235920829,22.66678399,2439.4,2439.2,2.04979]
[1725235921822,22.66678399,2439.4,2439.3,2.04976]
[1725235922353,19.93209454,2439.4,2439.3,4.09952]
[1725235925509,7.2068,2439.8,2439.7,2.04943]
[1725235925731,27.13889454,2439.8,2439.7,2.04943]
[1725235926117,19.93209454,2439.8,2439.7,4.09886]
[1725235927520,27.66029454,2440.2,2440.0,2.0491]
[1725235928349,3.49402945,2440.1,2440.0,2.0491]
[1725235929704,27.66029454,2440.2,2440.1,2.04909]
[1725235930348,27.66029454,2440.2,2440.0,2.0491]
[1725235930736,19.93209454,2440.2,2440.1,2.04909]
[1725235930924,19.93209454,2440.2,2440.1,4.09818]
[1725235931553,19.93209454,2440.4,2440.3,2.04892]
[1725235931768,19.93209454,2440.4,2440.3,4.09784]
[1725235931907,12.35,2441.1,2440.3,4.09784]
[1725235931908,19.93209454,2441.1,2441.0,2.04834]
[1725235932114,19.93209454,2441.1,2441.0,4.09668]
[1725235932650,19.93209454,2441.4,2441.3,2.04808]
[1725235932817,23.32439333,2441.4,2441.3,2.04808]
[1725235933017,23.32439333,2441.4,2440.9,2.04842]
[1725235934011,23.22439333,2441.4,2440.9,2.04842]
[1725235934231,2.32243933,2441.3,2440.9,2.04842]
[1725235935218,7.3453,2441.2,2440.7,2.04856]
[1725235935941,7.3453,2441.2,2440.8,2.04849]
[1725235936446,7.3453,2441.2,2440.7,2.04856]
[1725235936627,0.96677393,2441.1,2440.8,2.0485]
[1725235936840,0.96677393,2441.1,2440.2,2.46096]
[1725235936841,1.1209717,2441.6,2441.2,7.1254]
[1725235937019,1.1209717,2441.6,2441.5,6.14376]
[1725235937215,1.1209717,2441.6,2441.5,7.17774463]
[1725235937414,1.1209717,2441.6,2441.5,9.14376]
[1725235937618,1.1209717,2441.6,2441.5,7.09584]
[1725235939416,1.1209717,2441.6,2441.5,4.09584]
[1725235940078,1.1209717,2441.6,2441.5,2.04792]
[1725235942196,1.1209717,2441.6,2441.4,2.04799]
[1725235942388,1.1209717,2441.6,2441.5,2.04792]
[1725235943983,1.1209717,2441.6,2441.5,4.09584]
[1725235945097,1.1209717,2441.6,2441.5,2.04792]
[1725235945853,1.1209717,2441.6,2441.4,2.04799]
[1725235946050,2.01593887,2441.6,2441.4,2.04799]
[1725235946256,21.84803341,2441.6,2441.4,2.04799]
[1725235947683,21.84803341,2441.6,2441.5,2.04792]
[1725235947888,20.95306624,2441.6,2441.5,2.04792]
[1725235948978,20.95306624,2441.6,2441.0,2.0483]
[1725235949291,20.95306624,2441.6,2440.7,0.412]
[1725235949292,29.37491454,2441.5,2440.8,2.04848]
[1725235949466,7.4949,2441.3,2440.6,2.04865]
[1725235949667,7.4949,2441.1,2440.6,2.04865]
[1725235949972,7.4949,2441.1,2440.1,4.46657191]
[1725235949973,2.73269945,2441.0,2440.9,2.04842]
[1725235950200,7.4949,2441.1,2440.9,2.04842]
[1725235950419,19.83209454,2441.2,2441.1,2.04825]
[1725235952259,19.83209454,2441.2,2441.0,2.04834]
[1725235953211,19.83209454,2441.2,2441.1,4.0965]
[1725235955326,19.83209454,2441.3,2441.2,2.04817]
[1725235956929,19.83209454,2441.3,2441.2,4.09634]
[1725235959992,0.1209717,2441.6,2441.5,4.09584]
[1725235960318,0.1209717,2441.6,2441.5,6.14376]
[1725235960524,0.1209717,2441.6,2441.5,16.76546]
[1725235962046,1.7e-06,2441.6,2441.5,18.81338]
[1725235962507,1.7e-06,2441.6,2441.5,19.22538]
[1725235962707,1.7e-06,2441.6,2441.5,19.77538]
[1725235965241,1.7e-06,2441.6,2441.5,17.72746]
[1725235972540,1.7e-06,2441.6,2441.5,7.09584]
[1725235975729,7.3550017,2441.6,2441.5,2.04792]
[1725235975931,8.09050187,2441.6,2441.4,2.048]
[1725235976130,8.09050187,2441.6,2441.2,2.04816]
[1725235976464,8.09050187,2441.6,2440.6,9.92056844]
[1725235976465,19.83209454,2441.5,2440.6,9.92056844]
[1725235976619,19.83209454,2441.4,2441.3,2.04808]
[1725235976817,19.83209454,2441.5,2441.4,2.048]
[1725235978227,19.83209454,2441.5,2441.3,2.04806]
[1725235978434,7.8229,2441.4,2441.1,2.04823]
[1725235978847,7.8229,2441.4,2441.3,2.04808]
[1725235979093,7.8229,2441.4,2441.1,2.04823]
[1725235979655,27.65499454,2441.4,2441.0,2.04832]
[1725235979855,3.03737042,2441.3,2441.0,2.04832]
[1725235980296,3.03737042,2441.3,2440.9,2.04839]
[1725235980454,3.03737042,2441.3,2441.0,2.04833]
[1725235980796,3.03737042,2441.3,2440.9,2.04839]
[1725235980797,3.03737042,2441.3,2441.1,2.04825]
[1725235981850,27.65499454,2441.4,2441.0,0.08193149]
[1725235982079,27.65499454,2441.4,2440.7,0.08192279]
[1725235982399,19.83209454,2441.3,2441.2,4.09634]
[1725235982552,19.83209454,2441.5,2441.4,2.048]
[1725235983092,19.83209454,2441.5,2441.4,4.096]
[1725235984873,1.7e-06,2441.6,2441.5,4.09584]
[1725235991969,1.7e-06,2441.6,2441.5,7.09584]
[1725235992602,1.7e-06,2441.6,2441.5,7.17774473]
[1725235992815,1.7e-06,2441.6,2441.5,9.22566473]
[1725235993630,1.7e-06,2441.6,2441.5,12.57398608]
[1725235993793,1.7e-06,2441.6,2441.5,12.98598608]
[1725235993994,1.7e-06,2441.6,2441.5,22.73500608]
[1725235996184,1.7e-06,2441.6,2441.5,22.65310135]
[1725235999306,1.7e-06,2441.6,2441.5,24.70102135]
[1725235999496,1.7e-06,2441.6,2441.5,22.65310135]
[1725236001035,1.7e-06,2441.6,2441.5,9.55576]
[1725236001821,3.54699948,2444.3,2443.2,7.5509]
[1725236002035,7.473,2444.4,2443.9,9.48605135]
[1725236002180,7.473,2444.4,2443.9,9.89805135]
[1725236002983,7.473,2444.4,2443.9,12.89805135]
[1725236003178,1.7e-06,2444.0,2443.9,12.89805135]
[1725236003424,1.7e-06,2444.0,2443.9,13.44805135]
[1725236003785,1.7e-06,2444.0,2443.9,15.49396135]
[1725236003989,1.7e-06,2444.0,2443.9,14.55158394]
[1725236004708,1.7e-06,2444.0,2443.9,14.13958394]
[1725236005485,1.7e-06,2444.0,2443.9,14.55158394]
[1725236006510,1.7e-06,2444.0,2443.9,13.58958394]
[1725236009145,1.7e-06,2444.0,2443.9,9.13773]
[1725236012032,1.7e-06,2444.0,2443.9,9.54973]
[1725236012333,1.7e-06,2444.0,2443.9,7.50382]
[1725236012591,1.7e-06,2444.0,2443.9,7.5856395]
[1725236012753,1.7e-06,2444.0,2443.9,7.1736395]
[1725236014124,1.7e-06,2444.0,2443.9,9.2195495]
[1725236014328,1.7e-06,2444.0,2443.9,14.08340344]
[1725236015195,7.6497017,2444.0,2443.7,2.04605]
[1725236015399,0.52021472,2443.9,2443.5,2.04621]
[1725236015599,7.6497,2443.8,2443.5,2.04621]
[1725236015852,8.16991472,2443.8,2443.5,2.04621]
[1725236016002,7.6497,2443.8,2443.7,2.04607]
[1725236016745,8.49636933,2443.8,2443.3,2.04638]
[1725236016948,11.06265405,2443.8,2443.1,2.04654]
[1725236017174,7.5727,2443.6,2442.9,2.04673]
[1725236017350,7.5727,2443.6,2443.0,2.04665]
[1725236018173,7.5727,2443.6,2442.9,2.04673]
[1725236018376,7.5727,2443.6,2442.7,2.04691]
[1725236018377,7.5727,2443.3,2442.8,2.04682]
[1725236018565,7.5727,2443.3,2443.0,2.04666]
[1725236020127,7.5727,2443.3,2442.7,2.04691]
[1725236020299,28.51536454,2443.2,2442.6,2.04699]
[1725236020439,7.926,2443.1,2442.3,2.12911072]
[1725236020634,19.83209454,2443.0,2442.6,2.04699]
[1725236020868,19.83209454,2443.0,2442.4,0.0818754]
[1725236021084,19.83209454,2443.0,2442.7,2.04685]
[1725236021371,19.83209454,2443.0,2442.8,2.04682]
[1725236021760,19.83209454,2443.0,2442.6,2.04697]
[1725236021961,20.34354484,2443.0,2442.7,2.04689]
[1725236022195,19.83209454,2443.0,2442.9,2.04674]
[1725236022390,19.83209454,2443.0,2442.7,0.08187088]
[1725236022391,19.83209454,2443.0,2442.8,2.04682]
[1725236022691,19.83209454,2443.0,2442.8,2.04681]
[1725236023252,19.83209454,2443.0,2442.9,2.04674]
[1725236024058,19.83209454,2443.0,2442.9,4.09348]
[1725236026751,19.83209454,2443.1,2443.0,4.09332]
[1725236027603,7.9717,2443.4,2443.2,2.04649]
[1725236027820,7.9717,2443.4,2443.3,2.04641]
[1725236028125,8.55218469,2443.4,2443.2,2.04649]
[1725236030081,8.55218469,2443.4,2443.3,2.04641]
[1725236030420,7.9717,2443.4,2443.3,2.04641]
[1725236031213,7.9717,2443.4,2443.0,2.04666]
[1725236032482,19.83209454,2443.3,2443.0,2.04666]
[1725236034015,22.61247399,2443.3,2442.8,2.0468]
[1725236034220,19.83209454,2443.2,2443.1,2.04658]
[1725236034725,19.83209454,2443.2,2443.1,4.09316]
[1725236037186,19.83209454,2443.2,2443.1,2.04658]
[1725236037597,19.83209454,2443.2,2443.1,4.09316]
[1725236038525,7.9717,2443.4,2443.3,2.04641]
[1725236038734,19.83209454,2443.5,2443.4,2.04632]
[1725236042605,19.83209454,2443.5,2443.3,2.04641]
[1725236042839,19.83209454,2443.5,2443.3,2.04634]
[1725236043041,19.83209454,2443.5,2443.4,2.04632]
[1725236044349,19.83209454,2443.5,2443.3,2.04634]
[1725236044658,19.83209454,2443.6,2443.3,2.04634]
[1725236045350,19.83209454,2443.6,2443.4,2.04631]
[1725236045506,19.83209454,2443.6,2443.1,2.04651]
[1725236045847,7.916,2443.4,2443.1,2.04651]
[1725236046246,7.916,2443.4,2443.0,3.0]
[1725236046560,7.916,2443.4,2442.9,4.09338]
[1725236046720,7.916,2443.4,2442.9,2.04669]
[1725236046917,7.5158,2443.2,2442.5,2.04703]
[1725236047123,19.83209454,2443.1,2442.6,2.04699]
[1725236047451,19.83209454,2443.1,2442.7,2.04689]
[1725236048047,20.93281527,2443.1,2442.5,2.04703]
[1725236048252,20.93281527,2443.1,2442.6,2.04699]
[1725236048453,7.8404,2443.0,2442.3,2.04722]
[1725236048604,7.8404,2442.9,2442.3,2.04722]
[1725236049232,19.83209454,2442.8,2442.3,2.04722]
[1725236049439,7.928,2442.7,2442.3,2.04722]
[1725236049754,19.83209454,2442.6,2442.3,2.04722]
[1725236050606,19.83209454,2442.6,2442.1,2.04739]
[1725236051331,19.83209454,2442.6,2442.2,2.04731]
[1725236051551,19.83209454,2442.6,2442.3,2.04717]
[1725236053440,19.83209454,2442.5,2442.3,2.04717]
[1725236054114,19.83209454,2442.5,2442.4,2.04716]
[1725236056826,19.83209454,2442.5,2442.3,2.04717]
[1725236057932,19.83209454,2442.5,2442.3,4.09436]
[1725236058329,19.83209454,2442.5,2442.3,2.04717]
[1725236059445,19.83209454,2442.4,2442.3,2.04717]
[1725236059833,19.83209454,2442.4,2442.3,4.09442]
[1725236065371,27.64619454,2442.9,2442.6,2.04694]
[1725236066434,1.43577482,2442.8,2442.6,2.04694]
[1725236068132,27.64619454,2442.9,2442.8,2.04683]
[1725236068529,27.64619454,2442.9,2442.6,2.04694]
[1725236069446,27.64619454,2442.9,2442.4,2.04715]
[1725236069773,27.64619454,2442.9,2442.4,2.04709]
[1725236070461,27.64619454,2442.9,2442.5,2.04707]
[1725236070790,27.64619454,2442.9,2442.6,2.04699]
[1725236072185,30.41081399,2442.9,2442.6,2.04699]
[1725236073341,27.64619454,2442.9,2442.6,2.04699]
[1725236073744,27.64619454,2442.9,2442.7,2.04689]
[1725236074200,19.83209454,2442.8,2442.7,2.04689]
[1725236074348,19.83209454,2442.8,2442.6,2.04699]
[1725236074690,7.6598,2442.7,2442.4,2.04714]
[1725236074997,10.42441945,2442.7,2442.4,2.04714]
[1725236075178,10.42441945,2442.7,2442.2,2.04727]
[1725236075359,19.83209454,2442.6,2442.3,2.04724]
[1725236076594,19.83209454,2442.5,2442.2,2.04727]
[1725236076792,9.64300945,2442.4,2442.0,2.04743]
[1725236077169,9.64300945,2442.4,2441.8,2.04762]
[1725236077491,2.9475104,2442.3,2441.8,2.04762]
[1725236078686,2.9475104,2442.3,2441.9,2.04758]
[1725236078900,9.64300945,2442.4,2441.9,2.04758]
[1725236080163,19.83209454,2442.3,2441.8,2.04762]
[1725236080367,9.64300945,2442.4,2441.8,2.04762]
[1725236080368,7.265,2442.1,2441.8,2.04762]
[1725236080568,22.54180399,2442.0,2441.8,2.04762]
[1725236080804,19.83209454,2442.0,2441.8,2.04762]
[1725236082779,19.83209454,2442.0,2441.9,2.04758]
[1725236085019,19.83209454,2442.0,2441.9,4.09516]
[1725236086211,7.9387,2442.4,2442.1,2.04741]
[1725236086606,7.9387,2442.4,2442.2,2.04733]
[1725236087105,7.9387,2442.4,2442.1,2.04741]
[1725236087521,7.9387,2442.4,2442.1,4.09475]
[1725236087712,7.9387,2442.4,2442.3,2.04725]
[1725236088014,27.77079454,2442.4,2442.3,2.04725]
[1725236090509,31.27587399,2442.4,2442.3,1.91809608]
[1725236090713,31.27587399,2442.4,2442.1,2.04734]
[1725236090932,31.27587399,2442.4,2441.7,2.04768]
[1725236091073,31.27587399,2442.4,2441.6,2.04778]
[1725236091074,7.5147,2442.2,2441.6,2.04778]
[1725236091715,7.5147,2442.2,2441.7,2.04773]
[1725236092522,7.5147,2442.2,2441.8,2.04765]
[1725236092677,10.41825759,2442.2,2441.8,2.04761]
[1725236093021,10.41825759,2442.2,2441.9,2.04756]
[1725236094627,10.41825759,2442.2,2441.8,2.04761]
[1725236095117,19.83209454,2442.1,2441.8,2.04761]
[1725236098539,19.83209454,2442.1,2441.6,2.0478]
[1725236099328,7.7339,2442.0,2441.6,2.0478]
[1725236100192,19.83209454,2441.9,2441.4,2.04797]
[1725236100394,22.58869399,2441.8,2441.3,0.4105]
[1725236100592,22.58869399,2441.8,2441.3,2.45852]
[1725236100797,22.58869399,2441.8,2441.7,2.04775]
[1725236100995,19.83209454,2441.8,2441.7,2.04775]
[1725236101293,19.83209454,2441.8,2441.6,2.04781]
[1725236101506,19.83209454,2441.8,2441.4,2.04794]
[1725236101717,7.9683,2441.6,2441.2,2.45863]
[1725236101881,7.9683,2441.6,2441.2,2.04813]
[1725236102495,7.9683,2441.6,2441.2,2.0481]
[1725236102694,10.9466604,2441.6,2441.4,2.048]
[1725236103581,19.83209454,2441.8,2441.1,3.34424106]
[1725236103821,19.83209454,2441.8,2441.5,2.04784]
[1725236104040,19.83209454,2441.7,2441.6,2.04782]
[1725236104379,19.83209454,2441.7,2441.3,2.04802]
[1725236104585,1.98320945,2441.6,2441.3,2.04802]
[1725236104882,7.5976,2441.5,2441.3,2.04802]
[1725236105719,7.5976,2441.5,2441.1,2.04819]
[1725236106037,7.5976,2441.5,2441.2,2.04814]
[1725236106237,0.95808095,2441.4,2441.2,2.04814]